bitfinex-derivatives/quotes_BTCF0:USTF0_20210102
["timestamp","ask_amount","ask_price","bid_price","bid_amount"]
[1609619505005,0.00038189,32305.0,32287.0,0.00036149]
[1609619505205,0.16546,32306.0,32287.0,0.00036149]
[1609619505506,0.09358179,32305.0,32300.0,1.0]
[1609619505707,0.09358179,32305.0,32304.0,6.0]
[1609619505907,0.16546,32306.0,32305.0,1.0]
[1609619506306,0.16584175,32306.0,32305.0,1.0]
[1609619506707,0.16584175,32306.0,32305.0,1.18043158]
[1609619506907,0.25864175,32306.0,32305.0,1.18043158]
[1609619507107,0.16584175,32306.0,32305.0,1.18043158]
[1609619507809,0.16584175,32306.0,32305.0,2.18043158]
[1609619508008,0.25944175,32306.0,32305.0,1.18043158]
[1609619508211,0.16584175,32306.0,32305.0,1.18043158]
[1609619509213,0.25744175,32306.0,32305.0,1.18043158]
[1609619509615,0.16584175,32306.0,32305.0,1.18043158]
[1609619509811,0.16584175,32306.0,32305.0,0.18043158]
[1609619510513,0.25794175,32306.0,32305.0,0.18043158]
[1609619510913,0.16584175,32306.0,32305.0,0.18043158]
[1609619511112,0.16546,32306.0,32305.0,0.18043158]
[1609619511315,0.16991181,32306.0,32305.0,0.18043158]
[1609619511615,0.16991181,32306.0,32305.0,1.18043158]
[1609619512015,0.26311181,32306.0,32305.0,1.18043158]
[1609619512817,0.16991181,32306.0,32305.0,1.18043158]
[1609619513418,0.16953,32306.0,32305.0,1.18043158]
[1609619513819,0.16953,32306.0,32305.0,7.18043158]
[1609619514119,0.13945,32315.0,32305.0,7.18043158]
[1609619514319,0.49566579,32329.0,32305.0,7.18043158]
[1609619514720,0.49566579,32329.0,32328.0,0.18043158]
[1609619515324,0.49755243,32340.0,32328.0,0.18043158]
[1609619516123,0.49755243,32340.0,32329.0,1.0]
[1609619516623,0.49755243,32340.0,32339.0,0.18043158]
[1609619516824,0.39755243,32340.0,32339.0,0.18043158]
[1609619517025,0.0925,32342.0,32323.0,3.9409]
[1609619517225,0.23675,32342.0,32316.0,1.0]
[1609619517426,0.14425,32342.0,32316.0,1.0]
[1609619518325,0.14425,32342.0,32317.0,1.0]
[1609619518625,0.14425,32342.0,32341.0,0.18043158]
[1609619520025,0.14425,32342.0,32341.0,1.18043158]
[1609619520628,0.23675,32342.0,32341.0,1.18043158]
[1609619521228,0.14425,32342.0,32341.0,0.18043158]
[1609619521428,0.14425,32342.0,32341.0,1.18043158]
[1609619521829,0.14425,32342.0,32341.0,2.18043158]
[1609619522232,0.5974086,32355.0,32341.0,2.18043158]
[1609619522434,1.59685457,32357.0,32341.0,1.18043158]
[1609619522633,0.00038156,32348.0,32341.0,1.18043158]
[1609619522833,0.35235314,32348.0,32347.0,0.18043158]
[1609619523233,0.35235314,32348.0,32341.0,1.0]
[1609619523633,0.00038159,32347.0,32341.0,1.0]
[1609619523833,0.00038159,32347.0,32322.0,5.0328]
[1609619524833,0.0923,32346.0,32327.0,0.18043158]
[1609619525033,0.00038159,32347.0,32327.0,0.18043158]
[1609619525236,0.17154,32348.0,32312.0,1.0]
[1609619525237,0.00038169,32345.0,32312.0,1.0]
[1609619525434,0.00038169,32347.0,32309.0,3.5085]
[1609619525635,0.00038169,32347.0,32304.0,1.0]
[1609619526836,0.00038169,32347.0,32334.0,0.18043158]
[1609619527738,0.00038169,32347.0,32338.0,1.0]
[1609619528742,0.00038169,32347.0,32346.0,0.18043158]
[1609619529341,0.00038169,32347.0,32346.0,1.18043158]
[1609619530449,0.5962209,32366.0,32347.0,4.666]
[1609619530650,0.6890209,32366.0,32348.0,1.0]
[1609619530848,0.6890209,32366.0,32365.0,0.18043158]
[1609619531048,0.5962209,32366.0,32365.0,0.18043158]
[1609619531245,0.59660225,32366.0,32365.0,0.18043158]
[1609619531447,0.00038135,32366.0,32365.0,5.12553158]
[1609619531647,0.09318135,32366.0,32365.0,5.12553158]
[1609619532046,0.00038135,32366.0,32365.0,5.12553158]
[1609619532545,0.00038127,32371.0,32365.0,5.12553158]
[1609619532746,0.00038125,32382.0,32365.0,5.12553158]
[1609619532948,0.00038125,32382.0,32370.0,0.18043158]
[1609619533148,0.00038125,32382.0,32371.0,1.0]
[1609619533348,0.00038116,32384.0,32371.0,1.0]
[1609619534152,0.00038114,32391.0,32371.0,1.0]
[1609619534352,0.00038112,32383.0,32371.0,1.0]
[1609619534551,0.14937,32383.0,32371.0,1.0]
[1609619534750,0.14937,32383.0,32376.0,3.8495]
[1609619534951,0.14937,32383.0,32382.0,0.18043158]
[1609619535350,0.14975106,32383.0,32382.0,0.18043158]
[1609619535951,0.14937,32383.0,32382.0,0.18043158]
[1609619536752,0.14937,32383.0,32382.0,1.18043158]
[1609619537755,0.14937,32383.0,32382.0,2.18043158]
[1609619537956,0.24157,32383.0,32382.0,2.18043158]
[1609619538156,0.14937,32383.0,32382.0,2.18043158]
[1609619538455,1.0,32413.0,32382.0,2.18043158]
[1609619538857,0.000381,32412.0,32390.0,5.0624]
[1609619539058,0.112731,32412.0,32390.0,5.0624]
[1609619539658,0.00038096,32411.0,32390.0,5.0624]
[1609619539859,0.11235,32412.0,32390.0,6.0624]
[1609619540861,0.00038096,32411.0,32403.0,0.18043158]
[1609619541060,0.00038096,32411.0,32384.0,4.9214]
[1609619541661,1.0,32392.0,32384.0,4.9214]
[1609619542061,1.17142,32392.0,32384.0,4.9214]
[1609619542861,1.35185158,32392.0,32391.0,0.18043158]
[1609619543163,1.26272,32392.0,32391.0,0.18043158]
[1609619543765,0.26272,32392.0,32391.0,0.18043158]
[1609619543964,0.17142,32392.0,32391.0,0.18043158]
[1609619544766,0.17142,32392.0,32391.0,0.80063158]
[1609619547168,0.0916,32397.0,32391.0,0.80063158]
[1609619547370,0.1833,32397.0,32391.0,0.80063158]
[1609619547971,1.0,32399.0,32391.0,0.80063158]
[1609619548873,0.0919,32398.0,32391.0,0.80063158]
[1609619549073,0.18043158,32392.0,32391.0,0.6202]
[1609619549274,0.29475158,32392.0,32383.0,1.0]
[1609619549675,1.0,32384.0,32368.0,3.4844]
[1609619550075,1.14474,32384.0,32368.0,3.4844]
[1609619550974,1.14474,32384.0,32379.0,0.18043158]
[1609619551977,0.14474,32384.0,32379.0,0.18043158]
[1609619552977,0.14474,32384.0,32383.0,0.18043158]
[1609619554677,0.14474,32384.0,32383.0,1.18043158]
[1609619554877,0.14474,32384.0,32383.0,0.18043158]
[1609619555078,0.11432,32392.0,32383.0,0.18043158]
[1609619555279,0.18043158,32395.0,32383.0,0.18043158]
[1609619557084,3.915,32426.0,32378.0,3.9836]
[1609619557284,4.915,32426.0,32378.0,3.9836]
[1609619557483,0.00038099,32411.0,32378.0,3.9836]
[1609619557684,0.00038101,32412.0,32378.0,3.9836]
[1609619557884,0.00038101,32410.0,32378.0,3.9836]
[1609619559086,0.02225769,32410.0,32390.0,0.18043158]
[1609619560985,0.18043158,32396.0,32395.0,0.18043158]
[1609619561386,0.28835257,32396.0,32395.0,0.18043158]
[1609619561588,0.38075257,32396.0,32395.0,0.18043158]
[1609619561789,0.38075257,32396.0,32381.0,1.0]
[1609619561988,0.28835257,32396.0,32381.0,1.0]
[1609619562187,0.00038099,32395.0,32381.0,1.0]
[1609619562987,0.0924,32394.0,32389.0,0.18043158]
[1609619563390,0.0222583,32393.0,32389.0,0.18043158]
[1609619564491,0.0222578,32395.0,32389.0,0.18043158]
[1609619564690,0.02225776,32392.0,32389.0,0.18043158]
[1609619565092,0.18043158,32393.0,32389.0,0.18043158]
[1609619565292,0.02225648,32391.0,32389.0,0.18043158]
[1609619565492,0.11535594,32392.0,32389.0,0.18043158]
[1609619565691,0.11535594,32392.0,32389.0,1.18043158]
[1609619565891,0.02225561,32391.0,32389.0,1.18043158]
[1609619566892,0.00038098,32391.0,32389.0,1.18043158]
[1609619567092,0.10754,32396.0,32389.0,1.18043158]
[1609619567093,0.00038094,32390.0,32389.0,1.18043158]
[1609619567593,0.02186597,32395.0,32389.0,1.18043158]
[1609619567793,1.0,32390.0,32389.0,0.18043158]
[1609619568095,1.02186778,32390.0,32389.0,0.18043158]
[1609619568295,1.02186778,32390.0,32371.0,1.0]
[1609619568698,0.02186953,32389.0,32371.0,1.0]
[1609619568896,0.13215953,32389.0,32371.0,1.0]
[1609619569096,0.13215953,32389.0,32378.0,0.18043158]
[1609619569299,0.0218709,32388.0,32378.0,0.18043158]
[1609619569697,1.0,32385.0,32378.0,0.18043158]
[1609619570097,0.02187156,32384.0,32378.0,0.18043158]
[1609619570998,0.18043158,32380.0,32378.0,0.18043158]
[1609619571399,0.02187113,32379.0,32378.0,0.18043158]
[1609619572400,0.02187113,32379.0,32378.0,0.18079849]
[1609619573002,0.00038103,32379.0,32378.0,0.18043158]
[1609619575007,0.202302,32379.0,32374.0,0.18043158]
[1609619575508,0.02187091,32378.0,32374.0,0.18043158]
[1609619575906,0.02187091,32378.0,32364.0,4.5001]
[1609619576307,0.02187091,32378.0,32365.0,0.00036693]
[1609619576508,0.02187091,32378.0,32357.0,0.16081]
[1609619576708,0.02187091,32378.0,32343.0,0.16694]
[1609619577008,0.02187091,32378.0,32354.0,0.18043158]
[1609619577309,0.02188688,32379.0,32355.0,0.00036706]
[1609619577509,0.6054,32377.0,32355.0,0.00036706]
[1609619577808,0.00038126,32376.0,32343.0,0.16694]
[1609619578008,0.02189077,32376.0,32343.0,0.16694]
[1609619578208,0.02189077,32376.0,32344.0,0.00036716]
[1609619578614,0.02189077,32376.0,32343.0,0.16694]
[1609619579010,0.02189077,32376.0,32345.0,0.18043158]
[1609619580311,0.02189077,32376.0,32343.0,0.16694]
[1609619581112,0.18043158,32344.0,32343.0,0.16694]
[1609619581513,0.1808129,32344.0,32343.0,0.16694]
[1609619581712,1.1808129,32344.0,32340.0,0.18043158]
[1609619582112,0.00038132,32343.0,32341.0,0.0003672]
[1609619582313,0.00038132,32343.0,32341.0,1.0003672]
[1609619582914,0.00038132,32343.0,32342.0,0.00036717]
[1609619584115,0.00038121,32353.0,32342.0,4.50726717]
[1609619584517,0.00038121,32353.0,32343.0,0.00036709]
[1609619584916,0.00038121,32353.0,32341.0,0.00036712]
[1609619585118,0.00038121,32353.0,32348.0,0.18043158]
[1609619585517,0.00038121,32353.0,32340.0,0.16435]
[1609619585718,0.14021,32354.0,32340.0,0.16435]
[1609619586518,3.6648,32373.0,32340.0,0.16435]
[1609619587119,0.18043158,32353.0,32349.0,0.18043158]
[1609619588722,0.18043158,32353.0,32341.0,4.2432]
[1609619589122,0.11564,32356.0,32343.0,0.18043158]
[1609619590425,0.00038131,32355.0,32343.0,0.18043158]
[1609619590825,0.11564,32356.0,32343.0,0.18043158]
[1609619591026,0.11564,32356.0,32341.0,4.2432]
[1609619591226,0.18043158,32342.0,32341.0,4.2432]
[1609619591425,0.34706158,32342.0,32341.0,4.2432]
[1609619592028,0.34706158,32342.0,32340.0,0.18043158]
[1609619594330,0.34706158,32342.0,32325.0,4.095]
[1609619594531,4.07606158,32342.0,32317.0,2.05823745]
[1609619594932,4.07606158,32342.0,32318.0,0.00036728]
[1609619595132,0.00038143,32341.0,32317.0,2.05823745]
[1609619595336,0.18043158,32319.0,32310.0,2.05818611]
[1609619595934,0.13538,32322.0,32310.0,2.05818611]
[1609619597334,0.13538,32322.0,32314.0,0.18043158]
[1609619597535,0.13538,32322.0,32310.0,2.05818611]
[1609619597735,1.0,32315.0,32310.0,2.05818611]
[1609619597936,1.15201,32315.0,32310.0,2.05818611]
[1609619599739,0.15201,32315.0,32310.0,2.05818611]
[1609619600340,0.15201,32315.0,32295.0,5.1199]
[1609619600341,0.15201,32315.0,32303.0,2.05815864]
[1609619601340,0.15201,32315.0,32312.0,0.18043158]
[1609619602939,0.13538,32322.0,32312.0,0.18043158]
[1609619603140,0.2913,32340.0,32313.0,0.00036736]
[1609619603342,0.2913,32340.0,32322.0,0.18043158]
[1609619603540,0.00038149,32339.0,32322.0,0.18043158]
[1609619604542,0.2913,32340.0,32322.0,0.18043158]
[1609619605343,0.2913,32340.0,32330.0,0.18043158]
[1609619607144,1.0,32341.0,32330.0,0.18043158]
[1609619607345,1.0,32341.0,32340.0,0.18043158]
[1609619607744,0.18899938,32362.0,32340.0,0.18079877]
[1609619608345,0.18899938,32362.0,32341.0,0.00036716]
[1609619608744,0.00038129,32361.0,32341.0,0.00036716]
[1609619608946,0.16380129,32361.0,32341.0,0.00036716]
[1609619609347,0.00038129,32360.0,32351.0,0.18043158]
[1609619610549,0.16342,32361.0,32351.0,0.18043158]
[1609619611251,0.16342,32361.0,32360.0,0.18043158]
[1609619614055,1.0,32362.0,32360.0,0.18043158]
[1609619614859,1.0,32362.0,32360.0,0.74113158]
[1609619615060,1.0,32362.0,32360.0,0.18043158]
[1609619615259,1.0,32362.0,32361.0,4.4744]
[1609619615458,1.0,32362.0,32361.0,5.4744]
[1609619615859,0.48023158,32383.0,32361.0,6.4744]
[1609619616059,0.18043158,32383.0,32361.0,6.47476507]
[1609619616461,0.18043158,32383.0,32361.0,6.4744]
[1609619616659,0.18043158,32383.0,32362.0,0.00036505]
[1609619616860,1.0,32390.0,32362.0,0.00036505]
[1609619617261,1.0,32390.0,32389.0,0.18043158]
[1609619617861,0.2836,32395.0,32389.0,0.18043158]
[1609619618261,0.00038092,32394.0,32389.0,0.18043158]
[1609619618462,0.14893092,32394.0,32376.0,0.12228]
[1609619618861,0.71483092,32394.0,32366.0,4.0705]
[1609619619062,0.00038092,32393.0,32366.0,4.0705]
[1609619619261,0.00038092,32393.0,32371.0,0.18043158]
[1609619619662,0.00038092,32393.0,32366.0,4.0705]
[1609619620464,0.0921,32392.0,32366.0,4.0705]
[1609619620862,0.0003811,32391.0,32348.0,2.04430765]
[1609619621264,0.0003811,32391.0,32326.0,1.0]
[1609619621265,0.0003811,32391.0,32353.0,0.18043158]
[1609619621463,1.0,32389.0,32353.0,0.18043158]
[1609619621665,1.0,32389.0,32340.0,4.7569]
[1609619621863,0.00038114,32388.0,32340.0,4.7569]
[1609619622466,1.0,32389.0,32340.0,4.7569]
[1609619622665,0.00038119,32387.0,32340.0,4.7569]
[1609619622865,0.1506,32387.0,32340.0,4.7569]
[1609619623065,1.0,32386.0,32340.0,4.7569]
[1609619623265,0.18043158,32341.0,32340.0,4.7569]
[1609619623467,0.12591,32350.0,32340.0,4.7569]
[1609619623665,0.12591,32350.0,32339.0,0.18043158]
[1609619625267,0.12591,32350.0,32348.0,0.18043158]
[1609619625871,0.0918,32349.0,32348.0,0.18043158]
[1609619626072,0.12591,32350.0,32348.0,0.18043158]
[1609619626672,0.02591,32350.0,32331.0,3.5955]
[1609619627075,0.0925,32349.0,32331.0,3.5955]
[1609619627273,0.02591,32350.0,32344.0,0.18043158]
[1609619627473,0.02591,32350.0,32331.0,3.5955]
[1609619627776,1.0,32345.0,32331.0,3.5955]
[1609619628274,0.094,32344.0,32331.0,3.5955]
[1609619628574,1.0,32345.0,32331.0,3.5955]
[1609619629274,1.0,32345.0,32339.0,0.18043158]
[1609619629675,0.0927,32344.0,32339.0,0.18043158]
[1609619630276,0.18043158,32346.0,32339.0,0.18043158]
[1609619630475,0.18043158,32346.0,32331.0,3.5955]
[1609619630675,0.18043158,32346.0,32321.0,0.14195]
[1609619631075,0.18043158,32346.0,32322.0,0.00036542]
[1609619631277,0.18043158,32329.0,32325.0,0.18043158]
[1609619631477,0.18043158,32329.0,32322.0,0.00036542]
[1609619631678,4.18464,32326.0,32317.0,2.05268636]
[1609619632782,4.18464,32326.0,32306.0,2.05507117]
[1609619633179,4.18464,32326.0,32307.0,0.00036556]
[1609619633380,0.18043158,32308.0,32307.0,0.00036556]
[1609619638491,0.18043158,32308.0,32293.0,2.05585712]
[1609619638704,1.32472158,32308.0,32293.0,2.05585712]
[1609619638891,3.8565,32295.0,32294.0,0.00036566]
[1609619639288,4.03693158,32295.0,32294.0,0.00036566]
[1609619639489,0.18043158,32295.0,32294.0,0.00036566]
[1609619640390,0.18043158,32295.0,32279.0,2.23573925]
[1609619640991,0.15427,32301.0,32279.0,2.23573925]
[1609619641291,0.15427,32301.0,32290.0,0.18043158]
[1609619643396,0.18043158,32298.0,32296.0,0.18043158]
[1609619643998,0.18043158,32298.0,32287.0,0.14592]
[1609619645498,0.18043158,32288.0,32287.0,0.14592]
[1609619646498,0.15427,32301.0,32287.0,0.14592]
[1609619646699,0.2827,32307.0,32279.0,0.35006158]
[1609619646899,3.987,32300.0,32279.0,0.35006158]
[1609619647298,4.11455,32300.0,32279.0,0.35006158]
[1609619647499,4.11455,32300.0,32293.0,0.18043158]
[1609619648002,4.11455,32300.0,32279.0,0.16963]
[1609619648200,4.11455,32300.0,32274.0,3.04800077]
[1609619648902,4.11455,32300.0,32274.0,2.04800077]
[1609619649501,0.18043158,32290.0,32288.0,0.18043158]
[1609619650506,0.18043158,32290.0,32272.0,2.04757158]
[1609619651106,0.18043158,32290.0,32268.0,2.04563146]
[1609619651505,0.12755,32300.0,32280.0,0.18043158]
[1609619651706,0.12755,32300.0,32280.0,0.31394158]
[1609619652405,0.2812,32306.0,32280.0,0.31394158]
[1609619653409,0.2812,32306.0,32284.0,0.18043158]
[1609619653607,1.2812,32306.0,32280.0,0.13351]
[1609619653808,1.0,32285.0,32280.0,0.13351]
[1609619655009,1.5064,32285.0,32280.0,0.13351]
[1609619655208,0.00038178,32284.0,32281.0,0.0003658]
[1609619655409,0.18043158,32282.0,32281.0,0.0003658]
[1609619656010,1.18081341,32282.0,32281.0,0.0003658]
[1609619657915,0.18081341,32282.0,32281.0,0.0003658]
[1609619659018,0.00038183,32282.0,32281.0,0.0003658]
[1609619659418,0.00038183,32282.0,32281.0,0.18079738]
[1609619659618,3.5237,32293.0,32281.0,0.18079738]
[1609619659818,0.00038185,32282.0,32281.0,0.0003658]
[1609619660018,0.00038187,32292.0,32282.0,0.0003659]
[1609619660419,0.00038187,32292.0,32280.0,0.13351]
[1609619660420,0.00038187,32292.0,32281.0,0.0003659]
[1609619660619,0.00038187,32292.0,32283.0,0.0003659]
[1609619660818,0.00038187,32292.0,32282.0,0.00036586]
[1609619661220,0.00038187,32292.0,32284.0,0.00036586]
[1609619661420,0.00038187,32292.0,32287.0,0.18043158]
[1609619661620,0.00038184,32299.0,32285.0,0.00036587]
[1609619661821,1.0,32289.0,32285.0,0.00036587]
[1609619662020,1.0,32289.0,32288.0,0.00036587]
[1609619662220,0.00038184,32288.0,32286.0,0.00036587]
[1609619662421,1.00038184,32289.0,32288.0,0.00036587]
[1609619662621,1.0,32289.0,32287.0,0.00036587]
[1609619663021,0.00038185,32288.0,32281.0,0.00036587]
[1609619663222,0.00038185,32288.0,32280.0,0.13351]
[1609619663421,0.00038185,32288.0,32287.0,0.18043158]
[1609619663825,0.00038185,32288.0,32287.0,0.18079742]
[1609619664223,0.00038176,32289.0,32287.0,0.18079742]
[1609619664624,1.0,32299.0,32287.0,1.18079742]
[1609619664822,1.0,32299.0,32288.0,0.00036576]
[1609619665022,0.00038168,32298.0,32288.0,0.03853348]
[1609619665423,0.00038168,32298.0,32297.0,0.18043158]
[1609619665624,0.00038168,32298.0,32297.0,1.18043158]
[1609619665825,1.54784885,32347.0,32297.0,1.37540861]
[1609619666025,3.8984,32337.0,32297.0,6.43500861]
[1609619666426,3.8984,32337.0,32298.0,0.03852503]
[1609619666624,0.54555472,32326.0,32298.0,0.03852503]
[1609619667425,0.54555472,32326.0,32324.0,0.18043158]
[1609619667626,0.54555472,32326.0,32324.0,0.29255158]
[1609619667828,0.54555472,32326.0,32324.0,1.29255158]
[1609619668026,0.00935066,32325.0,32324.0,1.29291686]
[1609619668227,0.00935066,32325.0,32324.0,1.29255158]
[1609619668427,0.00935066,32325.0,32324.0,1.29291685]
[1609619668627,0.00935066,32325.0,32324.0,0.29291685]
[1609619669429,0.18978224,32325.0,32324.0,0.29291685]
[1609619669729,0.18978224,32325.0,32324.0,0.11248527]
[1609619669929,0.18978224,32325.0,32324.0,0.00036527]
[1609619670329,0.18978224,32325.0,32318.0,0.00036527]
[1609619670529,0.18978224,32325.0,32324.0,0.00036531]
[1609619670932,0.00038123,32324.0,32319.0,0.00036531]
[1609619671129,0.2116218,32325.0,32306.0,3.6973]
[1609619671329,0.00038131,32323.0,32320.0,0.00036539]
[1609619671532,0.18043158,32321.0,32320.0,0.00036539]
[1609619671732,1.0,32315.0,32309.0,0.18043158]
[1609619672134,0.00038128,32314.0,32310.0,0.00036154]
[1609619672433,1.0,32315.0,32310.0,0.00036154]
[1609619672633,0.00038126,32313.0,32307.0,0.00036149]
[1609619673033,1.0,32315.0,32304.0,0.13409]
[1609619673034,0.00038161,32314.0,32304.0,0.13409]
[1609619673235,0.00038164,32312.0,32299.0,1.0]
[1609619673433,0.18043158,32300.0,32299.0,1.0]
[1609619673834,1.18043158,32300.0,32295.0,0.18043158]
[1609619674035,1.18043158,32300.0,32288.0,3.7765]
[1609619674234,0.00038171,32299.0,32298.0,0.00036191]
[1609619674435,0.00038171,32299.0,32289.0,0.00036191]
[1609619675237,0.00038171,32299.0,32285.0,0.00036197]
[1609619675437,0.18043158,32286.0,32285.0,0.00036197]
[1609619675637,0.18043158,32286.0,32280.0,0.18043158]
[1609619675839,1.18043158,32286.0,32285.0,0.00036201]
[1609619676039,1.18043158,32286.0,32282.0,0.14121]
[1609619676437,1.00038182,32286.0,32285.0,0.00036202]
[1609619676638,1.0,32286.0,32282.0,0.14121]
[1609619677537,1.0,32286.0,32285.0,0.18043158]
[1609619677736,0.18043158,32291.0,32286.0,1.0]
[1609619678038,1.0,32302.0,32286.0,1.0]
[1609619678443,0.00038176,32301.0,32286.0,1.0]
[1609619678837,4.5289,32294.0,32286.0,1.0]
[1609619679241,1.0,32302.0,32287.0,0.00036198]
[1609619679639,0.18043158,32288.0,32287.0,0.00036198]
[1609619679839,1.0,32294.0,32282.0,0.14121]
[1609619680239,1.0,32294.0,32283.0,0.00036199]
[1609619681846,0.14744,32304.0,32283.0,0.00036199]
[1609619682043,4.9082,32303.0,32283.0,0.00036199]
[1609619683544,0.18043158,32284.0,32283.0,0.00036199]
[1609619684644,0.18043158,32284.0,32282.0,0.14121]
[1609619684944,0.18043158,32284.0,32283.0,0.00036202]
[1609619687646,0.18043158,32284.0,32283.0,0.1807936]
[1609619688348,0.18043158,32284.0,32283.0,0.00036202]
[1609619689750,1.18043158,32284.0,32283.0,0.00036202]
[1609619690649,1.0,32284.0,32283.0,0.00036202]
[1609619691550,1.0,32284.0,32283.0,0.1807936]
[1609619691752,0.18043158,32289.0,32283.0,0.1807936]
[1609619691951,0.14744,32304.0,32283.0,0.1807936]
[1609619692151,0.29544297,32309.0,32283.0,0.00036202]
[1609619692354,0.29544297,32309.0,32284.0,0.00036202]
[1609619692553,1.0,32308.0,32284.0,0.00036202]
[1609619692753,1.0,32308.0,32283.0,0.00036202]
[1609619693555,0.18043158,32284.0,32283.0,0.00036202]
[1609619693755,1.18043158,32284.0,32283.0,0.00036202]
[1609619695657,1.0,32284.0,32283.0,0.00036202]
[1609619695857,1.0,32286.0,32283.0,0.00036202]
[1609619697558,0.18043158,32284.0,32283.0,0.00036202]
[1609619699762,1.18043158,32284.0,32283.0,0.00036202]
[1609619701467,1.77083158,32284.0,32283.0,0.00036202]
[1609619701664,2.77083158,32284.0,32269.0,2.06886812]
[1609619701864,1.77083158,32284.0,32269.0,2.06886812]
[1609619702264,1.18043158,32284.0,32270.0,0.1367821]
[1609619702465,4.2232,32283.0,32270.0,0.1367821]
[1609619702664,5.2232,32283.0,32270.0,0.1367821]
[1609619702865,5.2232,32283.0,32271.0,0.00036213]
[1609619703064,0.00038198,32282.0,32271.0,0.00036213]
[1609619703768,0.18043158,32272.0,32271.0,0.00036213]
[1609619704368,0.18081356,32272.0,32271.0,0.00036213]
[1609619704569,0.86381356,32272.0,32271.0,0.00036213]
[1609619705171,1.86381356,32272.0,32271.0,0.00036213]
[1609619705771,1.86381356,32272.0,32255.0,2.069593]
[1609619705972,1.18081356,32272.0,32255.0,2.069593]
[1609619706172,4.7091,32271.0,32256.0,0.00036217]
[1609619706373,5.7091,32271.0,32256.0,0.00036217]
[1609619707173,5.7091,32271.0,32255.0,2.069593]
[1609619707576,1.0,32271.0,32250.0,2.06893495]
[1609619707774,0.18043158,32256.0,32250.0,2.06893495]
[1609619707973,0.18043158,32256.0,32251.0,0.00036222]
[1609619708176,0.18043158,32256.0,32251.0,0.10508222]
[1609619708578,0.18043158,32256.0,32252.0,0.00036222]
[1609619709376,1.0,32255.0,32252.0,0.00036222]
[1609619709778,1.0,32255.0,32251.0,0.10472]
[1609619711681,0.18043158,32252.0,32251.0,0.10472]
[1609619711881,1.18043158,32252.0,32251.0,0.10472]
[1609619712079,0.18043158,32252.0,32251.0,0.10472]
[1609619713281,0.18043158,32252.0,32239.0,4.2366]
[1609619713683,1.0,32271.0,32249.0,0.18043158]
[1609619713883,1.0,32271.0,32249.0,0.31234158]
[1609619715084,0.2779,32272.0,32249.0,0.31234158]
[1609619715486,1.2779,32272.0,32249.0,0.31234158]
[1609619715684,0.18043158,32250.0,32249.0,0.31234158]
[1609619716084,0.18043158,32250.0,32249.0,0.31270375]
[1609619716284,0.2779,32272.0,32249.0,0.31270375]
[1609619716688,0.2779,32272.0,32250.0,0.50036214]
[1609619717086,0.2779,32272.0,32251.0,0.00036211]
[1609619717686,0.2779,32272.0,32271.0,0.18043158]
[1609619717887,0.1422,32292.0,32271.0,0.18043158]
[1609619718087,0.00371833,32293.0,32271.0,0.32884158]
[1609619718287,0.00038194,32291.0,32271.0,0.32884158]
[1609619718487,0.15854188,32292.0,32271.0,0.32884158]
[1609619718688,0.00038188,32290.0,32272.0,0.00036201]
[1609619719087,0.00372202,32297.0,32272.0,0.00036201]
[1609619719489,0.01279739,32307.0,32272.0,0.00036201]
[1609619719689,0.18043158,32296.0,32290.0,0.18043158]
[1609619721789,0.18043158,32292.0,32290.0,0.18043158]
[1609619722191,1.0,32295.0,32290.0,0.34733158]
[1609619723693,1.0,32295.0,32294.0,0.18043158]
[1609619723894,0.18043158,32308.0,32294.0,0.18043158]
[1609619725794,0.18043158,32308.0,32307.0,0.18043158]
[1609619726195,0.18043158,32308.0,32302.0,0.12767]
[1609619727897,1.0,32309.0,32304.0,0.18043158]
[1609619729497,1.0,32309.0,32304.0,1.18043158]
[1609619729897,0.18043158,32326.0,32308.0,1.18043158]
[1609619730097,0.18043158,32326.0,32309.0,0.705]
[1609619730499,0.18043158,32326.0,32309.0,0.87261]
[1609619731198,0.00383101,32327.0,32309.0,0.87261]
[1609619731399,1.0,32330.0,32309.0,1.87261]
[1609619731800,0.00380691,32344.0,32327.0,0.18043158]
[1609619732701,0.00380691,32344.0,32322.0,0.12824]
[1609619732902,0.15734691,32344.0,32322.0,0.12824]
[1609619733101,1.0,32343.0,32322.0,0.12824]
[1609619733307,1.0,32343.0,32309.0,0.87261]
[1609619733604,0.00378786,32338.0,32309.0,0.87261]
[1609619733804,0.00378786,32338.0,32313.0,0.18043158]
[1609619734403,0.00378786,32338.0,32309.0,0.87261]
[1609619735005,0.00038167,32337.0,32309.0,0.87261]
[1609619735205,0.6665,32335.0,32309.0,0.705]
[1609619735405,1.0,32334.0,32309.0,0.705]
[1609619735809,0.18043158,32310.0,32309.0,0.705]
[1609619736006,0.29734158,32310.0,32300.0,0.18043158]
[1609619737009,1.0,32309.0,32286.0,2.05597021]
[1609619737210,4.9734,32308.0,32286.0,2.05597021]
[1609619737409,1.0,32307.0,32286.0,2.05597021]
[1609619737809,0.18043158,32287.0,32286.0,2.05597021]
[1609619738209,0.16784,32297.0,32278.0,0.18043158]
[1609619739927,0.16784,32297.0,32291.0,0.18043158]
[1609619740127,0.2945,32306.0,32291.0,0.28855158]
[1609619740326,3.9033,32335.0,32291.0,0.28855158]
[1609619740526,0.30385974,32327.0,32292.0,1.0]
[1609619740720,0.02725974,32327.0,32303.0,1.0]
[1609619741919,0.02725974,32327.0,32325.0,0.18043158]
[1609619742319,0.99840113,32328.0,32320.0,0.13935]
[1609619743127,0.2795,32331.0,32320.0,0.13935]
[1609619743821,0.18043158,32324.0,32322.0,0.18043158]
[1609619744020,0.2795,32331.0,32322.0,0.18043158]
[1609619745926,0.2795,32331.0,32330.0,0.18043158]
[1609619747328,0.2795,32331.0,32320.0,0.13935]
[1609619747529,0.27988158,32331.0,32302.0,3.64917]
[1609619747730,0.0003816,32330.0,32302.0,0.12017]
[1609619747927,0.0003816,32330.0,32318.0,0.18043158]
[1609619748429,0.1633016,32330.0,32318.0,0.18043158]
[1609619748830,0.00038164,32329.0,32318.0,0.18043158]
[1609619749931,0.00038164,32329.0,32326.0,0.18043158]
[1609619751435,0.092,32328.0,32326.0,0.18043158]
[1609619751633,0.00038164,32329.0,32326.0,0.18043158]
[1609619751834,0.18043158,32327.0,32320.0,0.18043158]
[1609619752233,0.0003816,32326.0,32320.0,0.18043158]
[1609619753835,0.18043158,32321.0,32320.0,0.18043158]
[1609619754336,0.1808132,32321.0,32320.0,0.18043158]